{"text_format":"1","workbook":"xlsx","n_sheets":4,"sheets":["Конфигуратор","Лист1","Наименование","Списки"],"not_rendered":{"charts":0,"images":3,"macros":1,"external_links":0,"defined_names":3,"comments":0,"pivot_tables":0},"unopened":[],"bounds":{"document_bytes":16777216,"sheet_cells":100000,"rows_first":2000,"rows_last":500,"rows_between":2000,"halvings":0,"cell_chars":16384,"cell_head_chars":4096},"cells_cut":0,"cells_raw":0,"read":"whole","date_system":"1900"}

{"sheet":"Конфигуратор","index":0,"n_rows":623,"n_cols":12,"rows_kept":623,"cut":false,"hidden":false,"merged":[[67,0,67,1],[40,0,40,1],[4,4,4,7],[14,0,14,1],[15,0,15,1],[5,4,9,7],[4,0,4,2],[5,0,9,2]]}
[]
[]
[]
[]
["Конфигуратор Светосигнальной арматуры Mitra",null,null,null,"Спецификация"]
["Данный конфигуратор предназначен для подбора компонентов, необходимых для комплектации законченного устройства светосигнальной арматуры \"Mitra\".\nИнструкция:\n1. Выберите тип устройсва, который вы хотите собрать;\n2. Выберите его характеристики.",null,null,null,"Результат:\nВ разделе \"Спецификация\" указаны комплектующие, необходимые для сборки кнопки, переключателя или сигнального индикатора.\n\nКомпоненты необходимо подбирать только из предложенных вариантов. Старая светосигнальная арматура M22 не совместима с новой."]
[null,null,null,null,null,null,null,null,null,{"$f":"\"\"","v":""}]
[]
[]
[]
[]
[]
[]
[null,null,null,null,null,null,null,null,null,null,null,"Содержимое заголовка"]
["Выбор параметров",null,null,null,"№ позиции","Артикул","Наименование","Количество",null,null,null,{"$f":"LEFT(E15,12)","v":"№ позиции"}]
["Кнопка",null,null,null,null,null,null,null,null,null,null,{"$f":"LEFT(E16,12)","v":""}]
[null,null,null,null,null,null,null,null,null,null,null,""]
["1. Вид кнопки:",null,{"$f":"IF(B18=\"\",\"Выберите вид кнопки\",\"\")","v":"Выберите вид кнопки"},null,null,null,null,null,null,null,null,""]
[null,null,null,null,null,null,null,null,null,null,null,""]
["2. С возможностью подсветки",{"$f":"IF(Конфигуратор!$B$18=\"Грибовидная\",\"Да\",IF(Конфигуратор!$B$24=\"Чёрный\",\"Нет\",\"\"))","v":""},{"$f":"IF(B18=\"Грибовидная\",IF(B20=\"\",\"Грибовидная кнопка с подсветкой 'Да'\",IF(B20=\"Да\",\"\",\"Выберите возможность подсветки  'Да'\")),IF(B20=\"\",\"Выберите возможность подсветки\",IF(B18&B20&B24=\"ПлоскаяДаЧёрный\",\"Плоская черная кнопка без подсветки\",\"\")))","v":"Выберите возможность подсветки"},null,null,null,null,null,null,null,null,""]
[null,null,null,null,null,null,null,null,null,null,null,""]
["3. Механизм:",{"$f":"IF(Конфигуратор!$B$18=\"Грибовидная\",\"С фиксацией\",IF(Конфигуратор!$B$24=\"Чёрный\",\"Без фиксации\",IF(Конфигуратор!$B$20=\"Нет\",\"Без фиксации\",\"\")))","v":""},{"$f":"IF(B18=\"Грибовидная\",IF(B22=\"Без фиксации\",\"Выберите механизм кнопки 'С фиксацией'\",IF(B22=\"\",\"Грибовидная кнопка 'С фиксацией'\",\"\")),IF(B22=\"\",IF(B20=\"Нет\",\"Кнопка без подсветки только 'Без фиксации'\",\"Выберите механизм кнопки\"),IF(B20=\"Нет\",IF(B22<>\"Без фиксации\",\"Выберите механизм кнопки 'Без фиксации'\",\"\"),\"\")))","v":"Выберите механизм кнопки"},null,null,null,null,null,null,null,null,""]
[null,null,null,null,null,null,null,null,null,null,null,""]
["4. Цвет",{"$f":"IF(Конфигуратор!$B$18=\"Грибовидная\",\"Красный\",\"\")","v":""},{"$f":"IF(B18=\"Грибовидная\",IF(B24=\"Красный\",\"\",IF(B24=\"\",\"Грибовидная кнопка 'Красная'\",\"Выберите цвет 'Красный'\")),IF(B24=\"\",\"Выберите цвет кнопки\",IF(B18&B20&B24=\"ПлоскаяДаЧёрный\",\"Плоская черная кнопка без подсветки\",\"\")))","v":"Выберите цвет кнопки"},null,null,null,null,null,null,null,null,""]
[null,null,null,null,null,null,null,null,null,null,null,""]
["5. Материал кольца",{"$f":"IF(Конфигуратор!$B$18<>\"\",\"Пластик\",\"\")","v":""},{"$f":"IF(B26=\"\",\"Выберите материал кольца\",\"\")","v":"Выберите материал кольца"},null,null,null,null,null,null,null,null,""]
[null,null,null,null,null,null,null,null,null,null,null,""]
["6. Тип зажима контактного блока",null,{"$f":"IF(B28=\"\",\"Выберите тип зажима\",\"\")","v":"Выберите тип зажима"},null,null,null,null,null,null,null,null,""]
[null,null,null,null,null,null,null,null,null,null,null,""]
["7. Наличие NO контактов",null,{"$f":"IF(B30=\"\",\"Выберите наличие NO контактов\",IF(B30=\"Нет\",IF(B34=\"Нет\",\"Необходимо выбрать блоки с 'NO или NC контактами'\",\"\"),\"\"))","v":"Выберите наличие NO контактов"},null,null,null,null,null,null,null,null,""]
[null,null,null,null,null,null,null,null,null,null,null,""]
["8. Количество NO контактов",{"$f":"IF(Конфигуратор!$B$30=\"Нет\",0,$J$7)","v":""},{"$f":"IFERROR(IF(B32&B30=\"Да\",\"Выберите количество NO контактов\",IF(B20&B28&B30&B34=\"НетВинтовойДаДа\",IF((IFERROR(B32,0)+IFERROR(B36,0))<=6,IF(B32=0,\"Выберите количество NO контактов\",\"\"),\"Без подсветки суммарно берем не более 6 блоков с 'NO и NC контактами'\"),IF(B20&B28&B30&B34=\"ДаВинтовойДаДа\",IF((IFERROR(B32,0)+IFERROR(B36,0))<=4,IF(B32=0,\"Выберите количество NO контактов\",\"\"),\"С подсветкой суммарно берем не более 4 блоков с 'NO и NC контактами'\"),IF(B20&B28&B30&B34=\"НетБезвинтовой Plug-InДаДа\",IF((IFERROR(B32,0)+IFERROR(B36,0))<=3,IF(B32=0,\"Выберите количество NO контактов\",\"\"),\"Без подсветки суммарно берем не более 3 блоков с 'NO и NC контактами'\"),IF(B20&B28&B30&B34=\"ДаБезвинтовой Plug-InДаДа\",IF((IFERROR(B32,0)+IFERROR(B36,0))<=2,IF(B32=0,\"Выберите количество NO контактов\",\"\"),\"С подсветкой суммарно берем не более 2 блоков  с 'NO и NC контактами'\"),IF(B20&B28&B30=\"НетВинтовойДа\",IF(B32<=6,IF(B32=0,\"Выберите количество NO контактов\",\"\"),\"Без подсветки берем не более 6 блоков с 'NO контактами'\"),IF(B20&B28&B30&B34=\"ДаВинтовойДаНет\",IF(B32<=4,IF(B32=0,\"Выберите количество NO контактов\",\"\"),\"С подсветкой берем не более 4 блоков с 'NO контактами'\"),IF(B20&B28&B30=\"НетБезвинтовой Plug-InДа\",IF(B32<=3,IF(B32=0,\"Выберите количество NO контактов\",\"\"),\"Без подсветки берем не более 3 блоков с 'NO контактами'\"),IF(B20&B28&B30=\"ДаБезвинтовой Plug-InДа\",IF(B32<=2,IF(B32=0,\"Выберите количество NO контактов\",\"\"),\"С подсветкой берем не более 2 блоков  с 'NO контактами'\"),IF(B30<>\"Да\",IF(B32>0,IF(B32=\"\",\"\",\"NO контакты не используем\"),\"\"),IF(B30=\"Да\",IF(B32=0,\"Выберите количество NO контактов\",\"\"),\"\"))))))))))),\"\")","v":""},null,null,null,null,null,null,null,null,""]
[null,null,null,null,null,null,null,null,null,null,null,""]
["9. Наличие NC контактов",null,{"$f":"IF(B34=\"\",\"Выберите наличие NC контактов\",IF(B34=\"Нет\",IF(B30=\"Нет\",\"Необходимо выбрать блоки с 'NO или NC контактами'\",\"\"),\"\"))","v":"Выберите наличие NC контактов"},null,null,null,null,null,null,null,null,""]
[null,null,null,null,null,null,null,null,null,null,null,""]
["10. Количество NC контактов",{"$f":"IF(Конфигуратор!$B$34=\"Нет\",0,$J$7)","v":""},{"$f":"IFERROR(IF(B34&B36=\"Да\",\"Выберите количество NC контактов\",IF(B20&B28&B30&B34=\"НетВинтовойДаДа\",IF((B32+B36)<=6,IF(B36=0,\"Выберите количество NC контактов\",\"\"),\"Без подсветки суммарно берем не более 6 блоков с 'NO и NC контактами'\"),IF(B20&B28&B30&B34=\"ДаВинтовойДаДа\",IF((B32+B36)<=4,IF(B36=0,\"Выберите количество NC контактов\",\"\"),\"С подсветкой суммарно берем не более 4 блоков с 'NO и NC контактами'\"),IF(B20&B28&B30&B34=\"НетБезвинтовой Plug-InДаДа\",IF((B32+B36)<=3,IF(B36=0,\"Выберите количество NC контактов\",\"\"),\"Без подсветки суммарно берем не более 3 блоков с 'NO и NC контактами'\"),IF(B20&B28&B30&B34=\"ДаБезвинтовой Plug-InДаДа\",IF((B32+B36)<=2,IF(B36=0,\"Выберите количество NC контактов\",\"\"),\"С подсветкой суммарно берем не более 2 блоков  с 'NO и NC контактами'\"),IF(B20&B28&B34=\"НетВинтовойДа\",IF(B36<=6,IF(B36=0,\"Выберите количество NC контактов\",\"\"),\"Без подсветки берем не более 6 блоков с 'NC контактами'\"),IF(B20&B28&B34=\"ДаВинтовойДа\",IF(B36<=4,IF(B36=0,\"Выберите количество NC контактов\",\"\"),\"С подсветкой берем не более 4 блоков с 'NC контактами'\"),IF(B20&B28&B34=\"НетБезвинтовой Plug-InДа\",IF(B36<=3,IF(B36=0,\"Выберите количество NC контактов\",\"\"),\"Без подсветки берем не более 3 блоков с 'NC контактами'\"),IF(B20&B28&B34=\"ДаБезвинтовой Plug-InДа\",IF(B36<=2,IF(B36=0,\"Выберите количество NC контактов\",\"\"),\"С подсветкой берем не более 2 блоков  с 'NC контактами'\"),IF(B34<>\"Да\",IF(B36>0,IF(B36=\"\",\"\",\"NC контакты не используем\"),\"\"),IF(B34=\"Да\",IF(B36=0,\"Выберите количество NC контактов\",\"\"),\"\"))))))))))),\"\")","v":""},null,null,null,null,null,null,null,null,""]
[null,null,null,null,null,null,null,null,null,null,null,""]
["9. Напряжение сети",{"$f":"IF(Конфигуратор!$B$20=\"Нет\",\"Нет\",$J$7)","v":""},{"$f":"IF(B20=\"Нет\",IF(B38<>\"Нет\",\"Кнопка без подсветки Напряжение = 'Нет'\",\"\"),IF(B20=\"Да\",IF(B38=\"\", \"Кнопка с подсветкой выберите Напряжение\",IF(B38=\"Нет\", \"Кнопка с подсветкой выберите Напряжение\",\"\")), \"Выберите Напряжение\"))","v":"Выберите Напряжение"},null,null,null,null,null,null,null,null,""]
[null,null,null,null,null,null,null,null,null,null,null,""]
[null,null,null,null,null,null,null,null,null,null,null,""]
["Переключатель",null,null,null,null,null,null,null,null,null,null,""]
[null,null,null,null,null,null,null,null,null,null,null,""]
["1. Тип переключателя",null,{"$f":"IF(B43=\"\",\"Выберите тип переключателя\",\"\")","v":"Выберите тип переключателя"},null,null,null,null,null,null,null,null,""]
[null,null,null,null,null,null,null,null,null,null,null,""]
["2. Количество положений",null,{"$f":"IF(B45=\"\",\"Выберите количество положений переключателя\",\"\")","v":"Выберите количество положений переключателя"},null,null,null,null,null,null,null,null,""]
[null,null,null,null,null,null,null,null,null,null,null,""]
["3. Механизм",null,{"$f":"IF(B47=\"\",\"Выберите механизм переключателя\",\"\")","v":"Выберите механизм переключателя"},null,null,null,null,null,null,null,null,""]
[null,null,null,null,null,null,null,null,null,null,null,""]
["4. Материал",{"$f":"IF(Конфигуратор!$B$47<>\"\",\"Алюминий\",\"\")","v":""},{"$f":"IF(B49=\"\",\"Выберите материал переключателя\",\"\")","v":"Выберите материал переключателя"},null,null,null,null,null,null,null,null,""]
[null,null,null,null,null,null,null,null,null,null,null,""]
["5. С возможностью подсветки",{"$f":"IF(Конфигуратор!$B$47<>\"\",\"Да\",\"\")","v":""},{"$f":"IF(B51=\"\",\"Выберите возможность подсветки\",\"\")","v":"Выберите возможность подсветки"},null,null,null,null,null,null,null,null,""]
[null,null,null,null,null,null,null,null,null,null,null,""]
["6. Напряжение сети",null,{"$f":"IF(B53=\"\",\"Переключатель с подсветкой выберите Напряжение\",\"\")","v":"Переключатель с подсветкой выберите Напряжение"},null,null,null,null,null,null,null,null,""]
[null,null,null,null,null,null,null,null,null,null,null,""]
["7. Цвет подсветки",null,{"$f":"IF(B55=\"\",\"Выберите цвет подсветки\",\"\")","v":"Выберите цвет подсветки"},null,null,null,null,null,null,null,null,""]
[null,null,null,null,null,null,null,null,null,null,null,""]
["8. Тип зажима контактного блока",null,{"$f":"IF(B57=\"\",\"Выберите тип зажима\",\"\")","v":"Выберите тип зажима"},null,null,null,null,null,null,null,null,""]
[null,null,null,null,null,null,null,null,null,null,null,""]
["9. Наличие NO контактов",null,{"$f":"IF(B59=\"\",\"Выберите наличие NO контактов\",IF(B59=\"Нет\",IF(B63=\"Нет\",\"Необходимо выбрать блоки с 'NO или NC контактами'\",\"\"),\"\"))","v":"Выберите наличие NO контактов"},null,null,null,null,null,null,null,null,""]
[null,null,null,null,null,null,null,null,null,null,null,""]
["10. Количество NO контактов",{"$f":"IF(Конфигуратор!$B$59=\"Нет\",0,$J$7)","v":""},{"$f":"IFERROR(IF(B59&B61=\"Да\",\"Выберите количество NO контактов\",IF(B51&B57&B59&B63=\"ДаВинтовойДаДа\",IF((B61+B65)<=4,IF(B61<1,\"Выберите количество NO контактов\",\"\"),\"С подсветкой суммарно берем не более 4 блоков с 'NO и NC контактами'\"),IF(B51&B57&B59&B63=\"ДаБезвинтовой Plug-InДаДа\",IF((B61+B65)<=2,IF(B59=\"Да\",IF(B61=0,\"Выберите количество NO контактов\",\"\"),\"\"),\"С подсветкой суммарно берем не более 2 блоков  с 'NO и NC контактами'\"),IF(B51&B57&B59=\"ДаВинтовойДа\",IF(B61<=4,IF(B61<1,\"Введите количество NO контактов\",\"\"),\"С подсветкой берем не более 4 блоков с 'NO контактами'\"),IF(B51&B57&B59=\"ДаБезвинтовой Plug-InДа\",IF(B61<=2,IF(B59=\"Да\",IF(B61=0,\"Выберите количество NO контактов\",\"\"),\"\"),\"С подсветкой берем не более 2 блоков  с 'NO контактами'\"),IF(B59<>\"Да\",IF(B61>0,IF(B61=\"\",\"\",\"NO контакты не используем\"),\"\"),IF(B59=\"Да\",IF(B61=0,\"Выберите количество NO контактов\",\"\"),\"\"))))))),\"\")","v":""},null,null,null,null,null,null,null,null,""]
[null,null,null,null,null,null,null,null,null,null,null,""]
["11. Наличие NC контактов",null,{"$f":"IF(B63=\"\",\"Выберите наличие NC контактов\",IF(B63=\"Нет\",IF(B59=\"Нет\",\"Необходимо выбрать блоки с 'NO или NC контактами'\",\"\"),\"\"))","v":"Выберите наличие NC контактов"},null,null,null,null,null,null,null,null,""]
[null,null,null,null,null,null,null,null,null,null,null,""]
["12. Количество NC контактов",{"$f":"IF(Конфигуратор!$B$63=\"Нет\",0,$J$7)","v":""},{"$f":"IFERROR(IF(B63&B65=\"Да\",\"Выберите количество NC контактов\",IF(B51&B57&B59&B63=\"ДаВинтовойДаДа\",IF((IFERROR(B61,0)+IFERROR(B65,0))<=4,IF(B65<1,\"Выберите количество NC контактов\",\"\"),\"С подсветкой суммарно берем не более 4 блоков с 'NO и NC контактами'\"),IF(B51&B57&B59&B63=\"ДаБезвинтовой Plug-InДаДа\",IF((IFERROR(B61,0)+IFERROR(B65,0))<=2,IF(B65<1,\"Выберите количество NC контактов\",\"\"),\"С подсветкой суммарно берем не более 2 блоков  с 'NO и NC контактами'\"),IF(B51&B57&B63=\"ДаВинтовойДа\",IF(B65<=4,IF(B65<1,\"Выберите количество NC контактов\",\"\"),\"С подсветкой берем не более 4 блоков с 'NC контактами'\"),IF(B51&B57&B63=\"НетБезвинтовой Plug-InДа\",IF(B65<=3,IF(B65<1,\"Выберите количество NC контактов\",\"\"),\"Без подсветки суммарно берем не более 3 блоков с 'NC контактами'\"),IF(B51&B57&B63=\"ДаБезвинтовой Plug-InДа\",IF(B65<=2,IF(B65<1,\"Выберите количество NC контактов\",\"\"),\"С подсветкой суммарно берем не более 2 блоков  с 'NC контактами'\"),IF(B63<>\"Да\",IF(B65>0,IF(B65=\"\",\"\",\"NC контакты не используем\"),\"\"),IF(B63=\"Да\",IF(B65<1,\"Выберите количество NC контактов\",\"\"),\"\")))))))),\"\")","v":""},null,null,null,null,null,null,null,null,""]
[null,null,null,null,null,null,null,null,null,null,null,""]
[null,null,null,null,null,null,null,null,null,null,null,""]
["Сигнальный инидкатор",null,null,null,null,null,null,null,null,null,null,""]
[null,null,null,null,null,null,null,null,null,null,null,""]
["1. Цвет лампы",null,{"$f":"IF(B70=\"\",\"Выберите цвет лампы\",\"\")","v":"Выберите цвет лампы"},null,null,null,null,null,null,null,null,""]
[null,null,null,null,null,null,null,null,null,null,null,""]
["2. Напряжение сети",null,{"$f":"IF(B72=\"\",\"Выберите напряжение\",\"\")","v":"Выберите напряжение"},null,null,null,null,null,null,null,null,""]
[null,null,null,null,null,null,null,null,null,null,null,""]
["3. Тип зажима",{"$f":"IF(Конфигуратор!$B$72<>\"\",\"Безвинтовой Plug-In\",\"\")","v":""},{"$f":"IF(B74=\"\",\"Выберите тип зажима\",\"\")","v":"Выберите тип зажима"},null,null,null,null,null,null,null,null,""]
[null,null,null,null,null,null,null,null,null,null,null,""]
[null,null,null,null,null,null,null,null,null,null,null,""]
[null,null,null,null,null,null,null,null,null,null,null,""]
[null,null,null,null,null,null,null,null,null,null,null,""]
[null,null,null,null,null,null,null,null,null,null,null,""]
[null,null,null,null,null,null,null,null,null,null,null,{"$f":"LEFT(E80,12)","v":""}]
[null,null,null,null,null,null,null,null,null,null,null,""]
[null,null,null,null,null,null,null,null,null,null,null,""]
[null,null,null,null,null,null,null,null,null,null,null,""]
[null,null,null,null,null,null,null,null,null,null,null,""]
[null,null,null,null,null,null,null,null,null,null,null,""]
[null,null,null,null,null,null,null,null,null,null,null,""]
[null,null,null,null,null,null,null,null,null,null,null,""]
[null,null,null,null,null,null,null,null,null,null,null,""]
[null,null,null,null,null,null,null,null,null,null,null,""]
[null,null,null,null,null,null,null,null,null,null,null,""]
[null,null,null,null,null,null,null,null,null,null,null,""]
[null,null,null,null,null,null,null,null,null,null,null,""]
[null,null,null,null,null,null,null,null,null,null,null,""]
[null,null,null,null,null,null,null,null,null,null,null,""]
[null,null,null,null,null,null,null,null,null,null,null,""]
[null,null,null,null,null,null,null,null,null,null,null,""]
[null,null,null,null,null,null,null,null,null,null,null,""]
[null,null,null,null,null,null,null,null,null,null,null,""]
[null,null,null,null,null,null,null,null,null,null,null,""]
[null,null,null,null,null,null,null,null,null,null,null,""]
[null,null,null,null,null,null,null,null,null,null,null,""]
[null,null,null,null,null,null,null,null,null,null,null,""]
[null,null,null,null,null,null,null,null,null,null,null,""]
[null,null,null,null,null,null,null,null,null,null,null,""]
[null,null,null,null,null,null,null,null,null,null,null,""]
[null,null,null,null,null,null,null,null,null,null,null,""]
[null,null,null,null,null,null,null,null,null,null,null,""]
[null,null,null,null,null,null,null,null,null,null,null,""]
[null,null,null,null,null,null,null,null,null,null,null,""]
[null,null,null,null,null,null,null,null,null,null,null,""]
[null,null,null,null,null,null,null,null,null,null,null,""]
[null,null,null,null,null,null,null,null,null,null,null,""]
[null,null,null,null,null,null,null,null,null,null,null,""]
[null,null,null,null,null,null,null,null,null,null,null,""]
[null,null,null,null,null,null,null,null,null,null,null,""]
[null,null,null,null,null,null,null,null,null,null,null,""]
[null,null,null,null,null,null,null,null,null,null,null,""]
[null,null,null,null,null,null,null,null,null,null,null,""]
[null,null,null,null,null,null,null,null,null,null,null,""]
[null,null,null,null,null,null,null,null,null,null,null,""]
[null,null,null,null,null,null,null,null,null,null,null,""]
[null,null,null,null,null,null,null,null,null,null,null,""]
[null,null,null,null,null,null,null,null,null,null,null,""]
[null,null,null,null,null,null,null,null,null,null,null,""]
[null,null,null,null,null,null,null,null,null,null,null,""]
[null,null,null,null,null,null,null,null,null,null,null,""]
[null,null,null,null,null,null,null,null,null,null,null,""]
[null,null,null,null,null,null,null,null,null,null,null,""]
[null,null,null,null,null,null,null,null,null,null,null,""]
[null,null,null,null,null,null,null,null,null,null,null,""]
[null,null,null,null,null,null,null,null,null,null,null,""]
[null,null,null,null,null,null,null,null,null,null,null,""]
[null,null,null,null,null,null,null,null,null,null,null,""]
[null,null,null,null,null,null,null,null,null,null,null,""]
[null,null,null,null,null,null,null,null,null,null,null,""]
[null,null,null,null,null,null,null,null,null,null,null,""]
[null,null,null,null,null,null,null,null,null,null,null,""]
[null,null,null,null,null,null,null,null,null,null,null,""]
[null,null,null,null,null,null,null,null,null,null,null,""]
[null,null,null,null,null,null,null,null,null,null,null,""]
[null,null,null,null,null,null,null,null,null,null,null,""]
[null,null,null,null,null,null,null,null,null,null,null,""]
[null,null,null,null,null,null,null,null,null,null,null,""]
[null,null,null,null,null,null,null,null,null,null,null,{"$f":"LEFT(E144,12)","v":""}]
[null,null,null,null,null,null,null,null,null,null,null,""]
[null,null,null,null,null,null,null,null,null,null,null,""]
[null,null,null,null,null,null,null,null,null,null,null,""]
[null,null,null,null,null,null,null,null,null,null,null,""]
[null,null,null,null,null,null,null,null,null,null,null,""]
[null,null,null,null,null,null,null,null,null,null,null,""]
[null,null,null,null,null,null,null,null,null,null,null,""]
[null,null,null,null,null,null,null,null,null,null,null,""]
[null,null,null,null,null,null,null,null,null,null,null,""]
[null,null,null,null,null,null,null,null,null,null,null,""]
[null,null,null,null,null,null,null,null,null,null,null,""]
[null,null,null,null,null,null,null,null,null,null,null,""]
[null,null,null,null,null,null,null,null,null,null,null,""]
[null,null,null,null,null,null,null,null,null,null,null,""]
[null,null,null,null,null,null,null,null,null,null,null,""]
[null,null,null,null,null,null,null,null,null,null,null,""]
[null,null,null,null,null,null,null,null,null,null,null,""]
[null,null,null,null,null,null,null,null,null,null,null,""]
[null,null,null,null,null,null,null,null,null,null,null,""]
[null,null,null,null,null,null,null,null,null,null,null,""]
[null,null,null,null,null,null,null,null,null,null,null,""]
[null,null,null,null,null,null,null,null,null,null,null,""]
[null,null,null,null,null,null,null,null,null,null,null,""]
[null,null,null,null,null,null,null,null,null,null,null,""]
[null,null,null,null,null,null,null,null,null,null,null,""]
[null,null,null,null,null,null,null,null,null,null,null,""]
[null,null,null,null,null,null,null,null,null,null,null,""]
[null,null,null,null,null,null,null,null,null,null,null,""]
[null,null,null,null,null,null,null,null,null,null,null,""]
[null,null,null,null,null,null,null,null,null,null,null,""]
[null,null,null,null,null,null,null,null,null,null,null,""]
[null,null,null,null,null,null,null,null,null,null,null,""]
[null,null,null,null,null,null,null,null,null,null,null,""]
[null,null,null,null,null,null,null,null,null,null,null,""]
[null,null,null,null,null,null,null,null,null,null,null,""]
[null,null,null,null,null,null,null,null,null,null,null,""]
[null,null,null,null,null,null,null,null,null,null,null,""]
[null,null,null,null,null,null,null,null,null,null,null,""]
[null,null,null,null,null,null,null,null,null,null,null,""]
[null,null,null,null,null,null,null,null,null,null,null,""]
[null,null,null,null,null,null,null,null,null,null,null,""]
[null,null,null,null,null,null,null,null,null,null,null,""]
[null,null,null,null,null,null,null,null,null,null,null,""]
[null,null,null,null,null,null,null,null,null,null,null,""]
[null,null,null,null,null,null,null,null,null,null,null,""]
[null,null,null,null,null,null,null,null,null,null,null,""]
[null,null,null,null,null,null,null,null,null,null,null,""]
[null,null,null,null,null,null,null,null,null,null,null,""]
[null,null,null,null,null,null,null,null,null,null,null,""]
[null,null,null,null,null,null,null,null,null,null,null,""]
[null,null,null,null,null,null,null,null,null,null,null,""]
[null,null,null,null,null,null,null,null,null,null,null,""]
[null,null,null,null,null,null,null,null,null,null,null,""]
[null,null,null,null,null,null,null,null,null,null,null,""]
[null,null,null,null,null,null,null,null,null,null,null,""]
[null,null,null,null,null,null,null,null,null,null,null,""]
[null,null,null,null,null,null,null,null,null,null,null,""]
[null,null,null,null,null,null,null,null,null,null,null,""]
[null,null,null,null,null,null,null,null,null,null,null,""]
[null,null,null,null,null,null,null,null,null,null,null,""]
[null,null,null,null,null,null,null,null,null,null,null,""]
[null,null,null,null,null,null,null,null,null,null,null,""]
[null,null,null,null,null,null,null,null,null,null,null,""]
[null,null,null,null,null,null,null,null,null,null,null,{"$f":"LEFT(E208,12)","v":""}]
[null,null,null,null,null,null,null,null,null,null,null,""]
[null,null,null,null,null,null,null,null,null,null,null,""]
[null,null,null,null,null,null,null,null,null,null,null,""]
[null,null,null,null,null,null,null,null,null,null,null,""]
[null,null,null,null,null,null,null,null,null,null,null,""]
[null,null,null,null,null,null,null,null,null,null,null,""]
[null,null,null,null,null,null,null,null,null,null,null,""]
[null,null,null,null,null,null,null,null,null,null,null,""]
[null,null,null,null,null,null,null,null,null,null,null,""]
[null,null,null,null,null,null,null,null,null,null,null,""]
[null,null,null,null,null,null,null,null,null,null,null,""]
[null,null,null,null,null,null,null,null,null,null,null,""]
[null,null,null,null,null,null,null,null,null,null,null,""]
[null,null,null,null,null,null,null,null,null,null,null,""]
[null,null,null,null,null,null,null,null,null,null,null,""]
[null,null,null,null,null,null,null,null,null,null,null,""]
[null,null,null,null,null,null,null,null,null,null,null,""]
[null,null,null,null,null,null,null,null,null,null,null,""]
[null,null,null,null,null,null,null,null,null,null,null,""]
[null,null,null,null,null,null,null,null,null,null,null,""]
[null,null,null,null,null,null,null,null,null,null,null,""]
[null,null,null,null,null,null,null,null,null,null,null,""]
[null,null,null,null,null,null,null,null,null,null,null,""]
[null,null,null,null,null,null,null,null,null,null,null,""]
[null,null,null,null,null,null,null,null,null,null,null,""]
[null,null,null,null,null,null,null,null,null,null,null,""]
[null,null,null,null,null,null,null,null,null,null,null,""]
[null,null,null,null,null,null,null,null,null,null,null,""]
[null,null,null,null,null,null,null,null,null,null,null,""]
[null,null,null,null,null,null,null,null,null,null,null,""]
[null,null,null,null,null,null,null,null,null,null,null,""]
[null,null,null,null,null,null,null,null,null,null,null,""]
[null,null,null,null,null,null,null,null,null,null,null,""]
[null,null,null,null,null,null,null,null,null,null,null,""]
[null,null,null,null,null,null,null,null,null,null,null,""]
[null,null,null,null,null,null,null,null,null,null,null,""]
[null,null,null,null,null,null,null,null,null,null,null,""]
[null,null,null,null,null,null,null,null,null,null,null,""]
[null,null,null,null,null,null,null,null,null,null,null,""]
[null,null,null,null,null,null,null,null,null,null,null,""]
[null,null,null,null,null,null,null,null,null,null,null,""]
[null,null,null,null,null,null,null,null,null,null,null,""]
[null,null,null,null,null,null,null,null,null,null,null,""]
[null,null,null,null,null,null,null,null,null,null,null,""]
[null,null,null,null,null,null,null,null,null,null,null,""]
[null,null,null,null,null,null,null,null,null,null,null,""]
[null,null,null,null,null,null,null,null,null,null,null,""]
[null,null,null,null,null,null,null,null,null,null,null,""]
[null,null,null,null,null,null,null,null,null,null,null,""]
[null,null,null,null,null,null,null,null,null,null,null,""]
[null,null,null,null,null,null,null,null,null,null,null,""]
[null,null,null,null,null,null,null,null,null,null,null,""]
[null,null,null,null,null,null,null,null,null,null,null,""]
[null,null,null,null,null,null,null,null,null,null,null,""]
[null,null,null,null,null,null,null,null,null,null,null,""]
[null,null,null,null,null,null,null,null,null,null,null,""]
[null,null,null,null,null,null,null,null,null,null,null,""]
[null,null,null,null,null,null,null,null,null,null,null,""]
[null,null,null,null,null,null,null,null,null,null,null,""]
[null,null,null,null,null,null,null,null,null,null,null,""]
[null,null,null,null,null,null,null,null,null,null,null,""]
[null,null,null,null,null,null,null,null,null,null,null,""]
[null,null,null,null,null,null,null,null,null,null,null,""]
[null,null,null,null,null,null,null,null,null,null,null,{"$f":"LEFT(E272,12)","v":""}]
[null,null,null,null,null,null,null,null,null,null,null,""]
[null,null,null,null,null,null,null,null,null,null,null,""]
[null,null,null,null,null,null,null,null,null,null,null,""]
[null,null,null,null,null,null,null,null,null,null,null,""]
[null,null,null,null,null,null,null,null,null,null,null,""]
[null,null,null,null,null,null,null,null,null,null,null,""]
[null,null,null,null,null,null,null,null,null,null,null,""]
[null,null,null,null,null,null,null,null,null,null,null,""]
[null,null,null,null,null,null,null,null,null,null,null,""]
[null,null,null,null,null,null,null,null,null,null,null,""]
[null,null,null,null,null,null,null,null,null,null,null,""]
[null,null,null,null,null,null,null,null,null,null,null,""]
[null,null,null,null,null,null,null,null,null,null,null,""]
[null,null,null,null,null,null,null,null,null,null,null,""]
[null,null,null,null,null,null,null,null,null,null,null,""]
[null,null,null,null,null,null,null,null,null,null,null,""]
[null,null,null,null,null,null,null,null,null,null,null,""]
[null,null,null,null,null,null,null,null,null,null,null,""]
[null,null,null,null,null,null,null,null,null,null,null,""]
[null,null,null,null,null,null,null,null,null,null,null,""]
[null,null,null,null,null,null,null,null,null,null,null,""]
[null,null,null,null,null,null,null,null,null,null,null,""]
[null,null,null,null,null,null,null,null,null,null,null,""]
[null,null,null,null,null,null,null,null,null,null,null,""]
[null,null,null,null,null,null,null,null,null,null,null,""]
[null,null,null,null,null,null,null,null,null,null,null,""]
[null,null,null,null,null,null,null,null,null,null,null,""]
[null,null,null,null,null,null,null,null,null,null,null,""]
[null,null,null,null,null,null,null,null,null,null,null,""]
[null,null,null,null,null,null,null,null,null,null,null,""]
[null,null,null,null,null,null,null,null,null,null,null,""]
[null,null,null,null,null,null,null,null,null,null,null,""]
[null,null,null,null,null,null,null,null,null,null,null,""]
[null,null,null,null,null,null,null,null,null,null,null,""]
[null,null,null,null,null,null,null,null,null,null,null,""]
[null,null,null,null,null,null,null,null,null,null,null,""]
[null,null,null,null,null,null,null,null,null,null,null,""]
[null,null,null,null,null,null,null,null,null,null,null,""]
[null,null,null,null,null,null,null,null,null,null,null,""]
[null,null,null,null,null,null,null,null,null,null,null,""]
[null,null,null,null,null,null,null,null,null,null,null,""]
[null,null,null,null,null,null,null,null,null,null,null,""]
[null,null,null,null,null,null,null,null,null,null,null,""]
[null,null,null,null,null,null,null,null,null,null,null,""]
[null,null,null,null,null,null,null,null,null,null,null,""]
[null,null,null,null,null,null,null,null,null,null,null,""]
[null,null,null,null,null,null,null,null,null,null,null,""]
[null,null,null,null,null,null,null,null,null,null,null,""]
[null,null,null,null,null,null,null,null,null,null,null,""]
[null,null,null,null,null,null,null,null,null,null,null,""]
[null,null,null,null,null,null,null,null,null,null,null,""]
[null,null,null,null,null,null,null,null,null,null,null,""]
[null,null,null,null,null,null,null,null,null,null,null,""]
[null,null,null,null,null,null,null,null,null,null,null,""]
[null,null,null,null,null,null,null,null,null,null,null,""]
[null,null,null,null,null,null,null,null,null,null,null,""]
[null,null,null,null,null,null,null,null,null,null,null,""]
[null,null,null,null,null,null,null,null,null,null,null,""]
[null,null,null,null,null,null,null,null,null,null,null,""]
[null,null,null,null,null,null,null,null,null,null,null,""]
[null,null,null,null,null,null,null,null,null,null,null,""]
[null,null,null,null,null,null,null,null,null,null,null,""]
[null,null,null,null,null,null,null,null,null,null,null,""]
[null,null,null,null,null,null,null,null,null,null,null,{"$f":"LEFT(E336,12)","v":""}]
[null,null,null,null,null,null,null,null,null,null,null,""]
[null,null,null,null,null,null,null,null,null,null,null,""]
[null,null,null,null,null,null,null,null,null,null,null,""]
[null,null,null,null,null,null,null,null,null,null,null,""]
[null,null,null,null,null,null,null,null,null,null,null,""]
[null,null,null,null,null,null,null,null,null,null,null,""]
[null,null,null,null,null,null,null,null,null,null,null,""]
[null,null,null,null,null,null,null,null,null,null,null,""]
[null,null,null,null,null,null,null,null,null,null,null,""]
[null,null,null,null,null,null,null,null,null,null,null,""]
[null,null,null,null,null,null,null,null,null,null,null,""]
[null,null,null,null,null,null,null,null,null,null,null,""]
[null,null,null,null,null,null,null,null,null,null,null,""]
[null,null,null,null,null,null,null,null,null,null,null,""]
[null,null,null,null,null,null,null,null,null,null,null,""]
[null,null,null,null,null,null,null,null,null,null,null,""]
[null,null,null,null,null,null,null,null,null,null,null,""]
[null,null,null,null,null,null,null,null,null,null,null,""]
[null,null,null,null,null,null,null,null,null,null,null,""]
[null,null,null,null,null,null,null,null,null,null,null,""]
[null,null,null,null,null,null,null,null,null,null,null,""]
[null,null,null,null,null,null,null,null,null,null,null,""]
[null,null,null,null,null,null,null,null,null,null,null,""]
[null,null,null,null,null,null,null,null,null,null,null,""]
[null,null,null,null,null,null,null,null,null,null,null,""]
[null,null,null,null,null,null,null,null,null,null,null,""]
[null,null,null,null,null,null,null,null,null,null,null,""]
[null,null,null,null,null,null,null,null,null,null,null,""]
[null,null,null,null,null,null,null,null,null,null,null,""]
[null,null,null,null,null,null,null,null,null,null,null,""]
[null,null,null,null,null,null,null,null,null,null,null,""]
[null,null,null,null,null,null,null,null,null,null,null,""]
[null,null,null,null,null,null,null,null,null,null,null,""]
[null,null,null,null,null,null,null,null,null,null,null,""]
[null,null,null,null,null,null,null,null,null,null,null,""]
[null,null,null,null,null,null,null,null,null,null,null,""]
[null,null,null,null,null,null,null,null,null,null,null,""]
[null,null,null,null,null,null,null,null,null,null,null,""]
[null,null,null,null,null,null,null,null,null,null,null,""]
[null,null,null,null,null,null,null,null,null,null,null,""]
[null,null,null,null,null,null,null,null,null,null,null,""]
[null,null,null,null,null,null,null,null,null,null,null,""]
[null,null,null,null,null,null,null,null,null,null,null,""]
[null,null,null,null,null,null,null,null,null,null,null,""]
[null,null,null,null,null,null,null,null,null,null,null,""]
[null,null,null,null,null,null,null,null,null,null,null,""]
[null,null,null,null,null,null,null,null,null,null,null,""]
[null,null,null,null,null,null,null,null,null,null,null,""]
[null,null,null,null,null,null,null,null,null,null,null,""]
[null,null,null,null,null,null,null,null,null,null,null,""]
[null,null,null,null,null,null,null,null,null,null,null,""]
[null,null,null,null,null,null,null,null,null,null,null,""]
[null,null,null,null,null,null,null,null,null,null,null,""]
[null,null,null,null,null,null,null,null,null,null,null,""]
[null,null,null,null,null,null,null,null,null,null,null,""]
[null,null,null,null,null,null,null,null,null,null,null,""]
[null,null,null,null,null,null,null,null,null,null,null,""]
[null,null,null,null,null,null,null,null,null,null,null,""]
[null,null,null,null,null,null,null,null,null,null,null,""]
[null,null,null,null,null,null,null,null,null,null,null,""]
[null,null,null,null,null,null,null,null,null,null,null,""]
[null,null,null,null,null,null,null,null,null,null,null,""]
[null,null,null,null,null,null,null,null,null,null,null,""]
[null,null,null,null,null,null,null,null,null,null,null,{"$f":"LEFT(E400,12)","v":""}]
[null,null,null,null,null,null,null,null,null,null,null,""]
[null,null,null,null,null,null,null,null,null,null,null,""]
[null,null,null,null,null,null,null,null,null,null,null,""]
[null,null,null,null,null,null,null,null,null,null,null,""]
[null,null,null,null,null,null,null,null,null,null,null,""]
[null,null,null,null,null,null,null,null,null,null,null,""]
[null,null,null,null,null,null,null,null,null,null,null,""]
[null,null,null,null,null,null,null,null,null,null,null,""]
[null,null,null,null,null,null,null,null,null,null,null,""]
[null,null,null,null,null,null,null,null,null,null,null,""]
[null,null,null,null,null,null,null,null,null,null,null,""]
[null,null,null,null,null,null,null,null,null,null,null,""]
[null,null,null,null,null,null,null,null,null,null,null,""]
[null,null,null,null,null,null,null,null,null,null,null,""]
[null,null,null,null,null,null,null,null,null,null,null,""]
[null,null,null,null,null,null,null,null,null,null,null,""]
[null,null,null,null,null,null,null,null,null,null,null,""]
[null,null,null,null,null,null,null,null,null,null,null,""]
[null,null,null,null,null,null,null,null,null,null,null,""]
[null,null,null,null,null,null,null,null,null,null,null,""]
[null,null,null,null,null,null,null,null,null,null,null,""]
[null,null,null,null,null,null,null,null,null,null,null,""]
[null,null,null,null,null,null,null,null,null,null,null,""]
[null,null,null,null,null,null,null,null,null,null,null,""]
[null,null,null,null,null,null,null,null,null,null,null,""]
[null,null,null,null,null,null,null,null,null,null,null,""]
[null,null,null,null,null,null,null,null,null,null,null,""]
[null,null,null,null,null,null,null,null,null,null,null,""]
[null,null,null,null,null,null,null,null,null,null,null,""]
[null,null,null,null,null,null,null,null,null,null,null,""]
[null,null,null,null,null,null,null,null,null,null,null,""]
[null,null,null,null,null,null,null,null,null,null,null,""]
[null,null,null,null,null,null,null,null,null,null,null,""]
[null,null,null,null,null,null,null,null,null,null,null,""]
[null,null,null,null,null,null,null,null,null,null,null,""]
[null,null,null,null,null,null,null,null,null,null,null,""]
[null,null,null,null,null,null,null,null,null,null,null,""]
[null,null,null,null,null,null,null,null,null,null,null,""]
[null,null,null,null,null,null,null,null,null,null,null,""]
[null,null,null,null,null,null,null,null,null,null,null,""]
[null,null,null,null,null,null,null,null,null,null,null,""]
[null,null,null,null,null,null,null,null,null,null,null,""]
[null,null,null,null,null,null,null,null,null,null,null,""]
[null,null,null,null,null,null,null,null,null,null,null,""]
[null,null,null,null,null,null,null,null,null,null,null,""]
[null,null,null,null,null,null,null,null,null,null,null,""]
[null,null,null,null,null,null,null,null,null,null,null,""]
[null,null,null,null,null,null,null,null,null,null,null,""]
[null,null,null,null,null,null,null,null,null,null,null,""]
[null,null,null,null,null,null,null,null,null,null,null,""]
[null,null,null,null,null,null,null,null,null,null,null,""]
[null,null,null,null,null,null,null,null,null,null,null,""]
[null,null,null,null,null,null,null,null,null,null,null,""]
[null,null,null,null,null,null,null,null,null,null,null,""]
[null,null,null,null,null,null,null,null,null,null,null,""]
[null,null,null,null,null,null,null,null,null,null,null,""]
[null,null,null,null,null,null,null,null,null,null,null,""]
[null,null,null,null,null,null,null,null,null,null,null,""]
[null,null,null,null,null,null,null,null,null,null,null,""]
[null,null,null,null,null,null,null,null,null,null,null,""]
[null,null,null,null,null,null,null,null,null,null,null,""]
[null,null,null,null,null,null,null,null,null,null,null,""]
[null,null,null,null,null,null,null,null,null,null,null,""]
[null,null,null,null,null,null,null,null,null,null,null,{"$f":"LEFT(E464,12)","v":""}]
[null,null,null,null,null,null,null,null,null,null,null,""]
[null,null,null,null,null,null,null,null,null,null,null,""]
[null,null,null,null,null,null,null,null,null,null,null,""]
[null,null,null,null,null,null,null,null,null,null,null,""]
[null,null,null,null,null,null,null,null,null,null,null,""]
[null,null,null,null,null,null,null,null,null,null,null,""]
[null,null,null,null,null,null,null,null,null,null,null,""]
[null,null,null,null,null,null,null,null,null,null,null,""]
[null,null,null,null,null,null,null,null,null,null,null,""]
[null,null,null,null,null,null,null,null,null,null,null,""]
[null,null,null,null,null,null,null,null,null,null,null,""]
[null,null,null,null,null,null,null,null,null,null,null,""]
[null,null,null,null,null,null,null,null,null,null,null,""]
[null,null,null,null,null,null,null,null,null,null,null,""]
[null,null,null,null,null,null,null,null,null,null,null,""]
[null,null,null,null,null,null,null,null,null,null,null,""]
[null,null,null,null,null,null,null,null,null,null,null,""]
[null,null,null,null,null,null,null,null,null,null,null,""]
[null,null,null,null,null,null,null,null,null,null,null,""]
[null,null,null,null,null,null,null,null,null,null,null,""]
[null,null,null,null,null,null,null,null,null,null,null,""]
[null,null,null,null,null,null,null,null,null,null,null,""]
[null,null,null,null,null,null,null,null,null,null,null,""]
[null,null,null,null,null,null,null,null,null,null,null,""]
[null,null,null,null,null,null,null,null,null,null,null,""]
[null,null,null,null,null,null,null,null,null,null,null,""]
[null,null,null,null,null,null,null,null,null,null,null,""]
[null,null,null,null,null,null,null,null,null,null,null,""]
[null,null,null,null,null,null,null,null,null,null,null,""]
[null,null,null,null,null,null,null,null,null,null,null,""]
[null,null,null,null,null,null,null,null,null,null,null,""]
[null,null,null,null,null,null,null,null,null,null,null,""]
[null,null,null,null,null,null,null,null,null,null,null,""]
[null,null,null,null,null,null,null,null,null,null,null,""]
[null,null,null,null,null,null,null,null,null,null,null,""]
[null,null,null,null,null,null,null,null,null,null,null,""]
[null,null,null,null,null,null,null,null,null,null,null,""]
[null,null,null,null,null,null,null,null,null,null,null,""]
[null,null,null,null,null,null,null,null,null,null,null,""]
[null,null,null,null,null,null,null,null,null,null,null,""]
[null,null,null,null,null,null,null,null,null,null,null,""]
[null,null,null,null,null,null,null,null,null,null,null,""]
[null,null,null,null,null,null,null,null,null,null,null,""]
[null,null,null,null,null,null,null,null,null,null,null,""]
[null,null,null,null,null,null,null,null,null,null,null,""]
[null,null,null,null,null,null,null,null,null,null,null,""]
[null,null,null,null,null,null,null,null,null,null,null,""]
[null,null,null,null,null,null,null,null,null,null,null,""]
[null,null,null,null,null,null,null,null,null,null,null,""]
[null,null,null,null,null,null,null,null,null,null,null,""]
[null,null,null,null,null,null,null,null,null,null,null,""]
[null,null,null,null,null,null,null,null,null,null,null,""]
[null,null,null,null,null,null,null,null,null,null,null,""]
[null,null,null,null,null,null,null,null,null,null,null,""]
[null,null,null,null,null,null,null,null,null,null,null,""]
[null,null,null,null,null,null,null,null,null,null,null,""]
[null,null,null,null,null,null,null,null,null,null,null,""]
[null,null,null,null,null,null,null,null,null,null,null,""]
[null,null,null,null,null,null,null,null,null,null,null,""]
[null,null,null,null,null,null,null,null,null,null,null,""]
[null,null,null,null,null,null,null,null,null,null,null,""]
[null,null,null,null,null,null,null,null,null,null,null,""]
[null,null,null,null,null,null,null,null,null,null,null,""]
[null,null,null,null,null,null,null,null,null,null,null,{"$f":"LEFT(E528,12)","v":""}]
[null,null,null,null,null,null,null,null,null,null,null,""]
[null,null,null,null,null,null,null,null,null,null,null,""]
[null,null,null,null,null,null,null,null,null,null,null,""]
[null,null,null,null,null,null,null,null,null,null,null,""]
[null,null,null,null,null,null,null,null,null,null,null,""]
[null,null,null,null,null,null,null,null,null,null,null,""]
[null,null,null,null,null,null,null,null,null,null,null,""]
[null,null,null,null,null,null,null,null,null,null,null,""]
[null,null,null,null,null,null,null,null,null,null,null,""]
[null,null,null,null,null,null,null,null,null,null,null,""]
[null,null,null,null,null,null,null,null,null,null,null,""]
[null,null,null,null,null,null,null,null,null,null,null,""]
[null,null,null,null,null,null,null,null,null,null,null,""]
[null,null,null,null,null,null,null,null,null,null,null,""]
[null,null,null,null,null,null,null,null,null,null,null,""]
[null,null,null,null,null,null,null,null,null,null,null,""]
[null,null,null,null,null,null,null,null,null,null,null,""]
[null,null,null,null,null,null,null,null,null,null,null,""]
[null,null,null,null,null,null,null,null,null,null,null,""]
[null,null,null,null,null,null,null,null,null,null,null,""]
[null,null,null,null,null,null,null,null,null,null,null,""]
[null,null,null,null,null,null,null,null,null,null,null,""]
[null,null,null,null,null,null,null,null,null,null,null,""]
[null,null,null,null,null,null,null,null,null,null,null,""]
[null,null,null,null,null,null,null,null,null,null,null,""]
[null,null,null,null,null,null,null,null,null,null,null,""]
[null,null,null,null,null,null,null,null,null,null,null,""]
[null,null,null,null,null,null,null,null,null,null,null,""]
[null,null,null,null,null,null,null,null,null,null,null,""]
[null,null,null,null,null,null,null,null,null,null,null,""]
[null,null,null,null,null,null,null,null,null,null,null,""]
[null,null,null,null,null,null,null,null,null,null,null,""]
[null,null,null,null,null,null,null,null,null,null,null,""]
[null,null,null,null,null,null,null,null,null,null,null,""]
[null,null,null,null,null,null,null,null,null,null,null,""]
[null,null,null,null,null,null,null,null,null,null,null,""]
[null,null,null,null,null,null,null,null,null,null,null,""]
[null,null,null,null,null,null,null,null,null,null,null,""]
[null,null,null,null,null,null,null,null,null,null,null,""]
[null,null,null,null,null,null,null,null,null,null,null,""]
[null,null,null,null,null,null,null,null,null,null,null,""]
[null,null,null,null,null,null,null,null,null,null,null,""]
[null,null,null,null,null,null,null,null,null,null,null,""]
[null,null,null,null,null,null,null,null,null,null,null,""]
[null,null,null,null,null,null,null,null,null,null,null,""]
[null,null,null,null,null,null,null,null,null,null,null,""]
[null,null,null,null,null,null,null,null,null,null,null,""]
[null,null,null,null,null,null,null,null,null,null,null,""]
[null,null,null,null,null,null,null,null,null,null,null,""]
[null,null,null,null,null,null,null,null,null,null,null,""]
[null,null,null,null,null,null,null,null,null,null,null,""]
[null,null,null,null,null,null,null,null,null,null,null,""]
[null,null,null,null,null,null,null,null,null,null,null,""]
[null,null,null,null,null,null,null,null,null,null,null,""]
[null,null,null,null,null,null,null,null,null,null,null,""]
[null,null,null,null,null,null,null,null,null,null,null,""]
[null,null,null,null,null,null,null,null,null,null,null,""]
[null,null,null,null,null,null,null,null,null,null,null,""]
[null,null,null,null,null,null,null,null,null,null,null,""]
[null,null,null,null,null,null,null,null,null,null,null,""]
[null,null,null,null,null,null,null,null,null,null,null,""]
[null,null,null,null,null,null,null,null,null,null,null,""]
[null,null,null,null,null,null,null,null,null,null,null,""]
[null,null,null,null,null,null,null,null,null,null,null,{"$f":"LEFT(E592,12)","v":""}]
[null,null,null,null,null,null,null,null,null,null,null,""]
[null,null,null,null,null,null,null,null,null,null,null,""]
[null,null,null,null,null,null,null,null,null,null,null,""]
[null,null,null,null,null,null,null,null,null,null,null,""]
[null,null,null,null,null,null,null,null,null,null,null,""]
[null,null,null,null,null,null,null,null,null,null,null,""]
[null,null,null,null,null,null,null,null,null,null,null,""]
[null,null,null,null,null,null,null,null,null,null,null,""]
[null,null,null,null,null,null,null,null,null,null,null,""]
[null,null,null,null,null,null,null,null,null,null,null,""]
[null,null,null,null,null,null,null,null,null,null,null,""]
[null,null,null,null,null,null,null,null,null,null,null,""]
[null,null,null,null,null,null,null,null,null,null,null,""]
[null,null,null,null,null,null,null,null,null,null,null,""]
[null,null,null,null,null,null,null,null,null,null,null,""]
[null,null,null,null,null,null,null,null,null,null,null,""]
[null,null,null,null,null,null,null,null,null,null,null,""]
[null,null,null,null,null,null,null,null,null,null,null,""]
[null,null,null,null,null,null,null,null,null,null,null,""]
[null,null,null,null,null,null,null,null,null,null,null,""]
[null,null,null,null,null,null,null,null,null,null,null,""]
[null,null,null,null,null,null,null,null,null,null,null,""]
[null,null,null,null,null,null,null,null,null,null,null,""]
[null,null,null,null,null,null,null,null,null,null,null,""]
[null,null,null,null,null,null,null,null,null,null,null,""]
[null,null,null,null,null,null,null,null,null,null,null,""]
[null,null,null,null,null,null,null,null,null,null,null,""]
[null,null,null,null,null,null,null,null,null,null,null,""]
[null,null,null,null,null,null,null,null,null,null,null,""]
[null,null,null,null,null,null,null,null,null,null,null,""]
[null,null,null,null,null,null,null,null,null,null,null,""]

{"sheet":"Лист1","index":1,"n_rows":42,"n_cols":10,"rows_kept":42,"cut":false,"hidden":true,"merged":[[2,1,2,4],[9,1,9,4],[16,1,16,4],[6,6,6,8],[1,1,1,4]]}
[{"$f":"COUNTIF(Конфигуратор!L:L,\"Спецификация\")","v":0},"№ позиции","Артикул","Наименование","Количество"]
["Индекс",{"$f":"\"Спецификация \"&A1+1","v":"Спецификация 1"}]
[{"$f":"IF(C4=\"\",0,1)","v":0},{"$f":"IF(SUM(A3:A7)=0,,\"Кнопка\")","v":0}]
[{"$f":"IF(C5=\"\",0,1)","v":0},{"$f":"IF(A3=1,A3,)","v":0},{"$f":"IFERROR(VLOOKUP(Конфигуратор!$B$18&Конфигуратор!$B$22&Конфигуратор!$B$24&Конфигуратор!$B$26&Конфигуратор!$B$20,Наименование!$M:$N,2,0),\"\")","v":""},{"$f":"IFERROR(VLOOKUP(C4,Наименование!$A:$B,2,0),\"\")","v":""},{"$f":"IF(C4=\"\",\"\",1)","v":""}]
[{"$f":"IF(C6=\"\",0,1)","v":0},{"$f":"IF(A4>0,A4+B4,)","v":0},{"$f":"IF(C4=\"\",\"\",\"M22MF\")","v":""},{"$f":"IFERROR(VLOOKUP(C5,Наименование!$A:$B,2,0),\"\")","v":""},{"$f":"IF(C5=\"\",\"\",1)","v":""}]
[{"$f":"IF(C7=\"\",0,1)","v":0},{"$f":"IF(A5>0,A5+A4+A3,)","v":0},{"$f":"IFERROR(IF(Конфигуратор!$B$20=\"\",VLOOKUP(Конфигуратор!$B$24&Конфигуратор!$B$28&\"Нет\"&Конфигуратор!$B$38,Наименование!$M:$N,2,0),VLOOKUP(Конфигуратор!$B$24&Конфигуратор!$B$28&Конфигуратор!$B$20&Конфигуратор!$B$38,Наименование!$M:$N,2,0)),\"\")","v":""},{"$f":"IFERROR(VLOOKUP(C6,Наименование!$A:$B,2,0),\"\")","v":""},{"$f":"IF(C6=\"\",\"\",1)","v":""}]
[{"$f":"IF(C8=\"\",0,1)","v":0},{"$f":"IF(A6>0,A6+A5+A4+A3,)","v":0},{"$f":"IFERROR(VLOOKUP(Конфигуратор!$B$28&Конфигуратор!$B$30&\"Нет\",Наименование!$M:$N,2,0),\"\")","v":""},{"$f":"IFERROR(VLOOKUP(C7,Наименование!$A:$B,2,0),\"\")","v":""},{"$f":"IF(C7<>\"\",Конфигуратор!$B$32,\"\")","v":""},null,"Пустая ячейка для заполнения",null,null," "]
[null,{"$f":"IF(A7>0,A7+A6+A5+A3+A4,)","v":0},{"$f":"IFERROR(VLOOKUP(Конфигуратор!$B$28&\"Нет\"&Конфигуратор!$B$34,Наименование!$M:$N,2,0),\"\")","v":""},{"$f":"IFERROR(VLOOKUP(C8,Наименование!$A:$B,2,0),\"\")","v":""},{"$f":"IF(C8<>\"\",Конфигуратор!$B$36,\"\")","v":""}]
[null,{"$f":"IF(B3=0,0,\"\")","v":0}]
[{"$f":"IF(C11=\"\",0,1)","v":0},{"$f":"IF(SUM(A10:A14)=0,,\"Переключатель\")","v":0}]
[{"$f":"IF(C12=\"\",0,1)","v":0},{"$f":"IF(A10=1,A10,)","v":0},{"$f":"IFERROR(VLOOKUP(Конфигуратор!$B$43&Конфигуратор!$B$47&Конфигуратор!$B$49&Конфигуратор!$B$45,Наименование!$M:$N,2,0),\"\")","v":""},{"$f":"IFERROR(VLOOKUP(C11,Наименование!$A:$B,2,0),\"\")","v":""},{"$f":"IF(C11=\"\",\"\",1)","v":""}]
[{"$f":"IF(C13=\"\",0,1)","v":0},{"$f":"IF(A11>0,A11+B11,)","v":0},{"$f":"IF(C11=\"\",\"\",\"M22MF\")","v":""},{"$f":"IFERROR(VLOOKUP(C12,Наименование!$A:$B,2,0),\"\")","v":""},{"$f":"IF(C12=\"\",\"\",1)","v":""}]
[{"$f":"IF(C14=\"\",0,1)","v":0},{"$f":"IF(A12>0,A12+A11+A10,)","v":0},{"$f":"IFERROR(IF(Конфигуратор!$B$51=\"Да\",VLOOKUP(Конфигуратор!$B$55&Конфигуратор!$B$57&Конфигуратор!$B$51&Конфигуратор!$B$53,Наименование!$M:$N,2,0),\"\"),\"\")","v":""},{"$f":"IFERROR(VLOOKUP(C13,Наименование!$A:$B,2,0),\"\")","v":""},{"$f":"IF(C13=\"\",\"\",1)","v":""}]
[{"$f":"IF(C15=\"\",0,1)","v":0},{"$f":"IF(A13>0,A13+A12+A11+A10,)","v":0},{"$f":"IFERROR(IF(Конфигуратор!$B$59=\"Да\",VLOOKUP(Конфигуратор!$B$57&Конфигуратор!$B$59&\"Нет\",Наименование!$M:$N,2,0),\"\"),\"\")","v":""},{"$f":"IFERROR(VLOOKUP(C14,Наименование!$A:$B,2,0),\"\")","v":""},{"$f":"IF(C14<>\"\",Конфигуратор!$B$61,\"\")","v":""}]
[null,{"$f":"IF(A14>0,A14+A13+A12+A10+A11,)","v":0},{"$f":"IFERROR(IF(Конфигуратор!$B$63=\"Да\",VLOOKUP(Конфигуратор!$B$57&\"Нет\"&Конфигуратор!$B$63,Наименование!$M:$N,2,0),\"\"),\"\")","v":""},{"$f":"IFERROR(VLOOKUP(C15,Наименование!$A:$B,2,0),\"\")","v":""},{"$f":"IF(C15<>\"\",Конфигуратор!$B$65,\"\")","v":""}]
[null,{"$f":"IF(B10=0,0,\"\")","v":0}]
[{"$f":"IF(C18=\"\",0,1)","v":0},{"$f":"IF(A17=0,,\"Сигнальный индикатор\")","v":0}]
[null,{"$f":"IF(A17>0,A17,)","v":0},{"$f":"IFERROR(VLOOKUP(Конфигуратор!$B$70&Конфигуратор!$B$74&Конфигуратор!$B$72,Наименование!$M:$N,2,0),\"\")","v":""},{"$f":"IFERROR(VLOOKUP(C18,Наименование!A:B,2,0),\"\")","v":""},{"$f":"IF(C18=\"\",\"\",1)","v":""}]
[null,{"$f":"IF(B17=0,0,\"\")","v":0},null,null,null,null,null,"J","B","Правила заполнения"]
[null,null,null,null,null,null,null,20,20,{"$f":"IF(Конфигуратор!$B$18=\"Грибовидная\",\"Да\",IF(Конфигуратор!$B$24=\"Чёрный\",\"Нет\",\"\"))","v":""}]
[]
[null,null,null,null,null,null,null,22,22,{"$f":"IF(Конфигуратор!$B$18=\"Грибовидная\",\"С фиксацией\",IF(Конфигуратор!$B$24=\"Чёрный\",\"Без фиксации\",IF(Конфигуратор!$B$20=\"Нет\",\"Без фиксации\",\"\")))","v":""}]
[]
[null,null,null,null,null,null,null,23,24,{"$f":"IF(Конфигуратор!$B$18=\"Грибовидная\",\"Красный\",\"\")","v":""}]
[]
[null,null,null,null,null,null,null,26,26,{"$f":"IF(Конфигуратор!$B$18<>\"\",\"Пластик\",\"\")","v":""}]
[]
[null,null,null,null,null,null,null,28,32,{"$f":"IF(Конфигуратор!$B$30=\"Нет\",0,$J$7)","v":" "}]
[]
[null,null,null,null,null,null,null,30,36,{"$f":"IF(Конфигуратор!$B$34=\"Нет\",0,$J$7)","v":" "}]
[]
[null,null,null,null,null,null,null,32,38,{"$f":"IF(Конфигуратор!$B$20=\"Нет\",\"Нет\",$J$7)","v":" "}]
[]
[null,null,null,null,null,null,null,34,49,{"$f":"IF(Конфигуратор!$B$47<>\"\",\"Алюминий\",\"\")","v":""}]
[]
[null,null,null,null,null,null,null,36,51,{"$f":"IF(Конфигуратор!$B$47<>\"\",\"Да\",\"\")","v":""}]
[]
[null,null,null,null,null,null,null,38,61,{"$f":"IF(Конфигуратор!$B$59=\"Нет\",0,$J$7)","v":" "}]
[]
[null,null,null,null,null,null,null,40,65,{"$f":"IF(Конфигуратор!$B$63=\"Нет\",0,$J$7)","v":" "}]
[]
[null,null,null,null,null,null,null,42,74,{"$f":"IF(Конфигуратор!$B$72<>\"\",\"Безвинтовой Plug-In\",\"\")","v":""}]

{"sheet":"Наименование","index":2,"n_rows":69,"n_cols":15,"rows_kept":69,"cut":false,"hidden":true,"merged":[]}
["Артикул","Наименование","1.Вид кнопки","8.С возможностью подсветки","2.Механизм","3.Цвет","4.Материал кольца","5. Тип зажима контактного блока","6.Наличие NO контактов","7.Наличие NC контактов","9.Напряжение сети","Положения",null,"Артикул"]
["M22P-FLLRP","Головка кнопки плоская прозрачная с  фиксацией, красная","Плоская","Да","С фиксацией","Красный","Пластик",null,null,null,null,null,{"$f":"C2&E2&F2&G2&H2&I2&J2&D2&K2&L2","v":"ПлоскаяС фиксациейКрасныйПластикДа"},"M22P-FLLRP","ПлоскаяБез фиксацииЗелёныйПластикДа"]
["M22P-FLLGP","Головка кнопки плоская прозрачная с  фиксацией, зеленая","Плоская","Да","С фиксацией","Зелёный","Пластик",null,null,null,null,null,{"$f":"C3&E3&F3&G3&H3&I3&J3&D3&K3&L3","v":"ПлоскаяС фиксациейЗелёныйПластикДа"},"M22P-FLLGP"]
["M22P-FLLBP","Головка кнопки плоская прозрачная с  фиксацией, синяя","Плоская","Да","С фиксацией","Синий","Пластик",null,null,null,null,null,"ПлоскаяС фиксациейСинийПластикДа","M22P-FLLBP"]
["M22P-FLLYP","Головка кнопки плоская прозрачная с  фиксацией, жёлтая","Плоская","Да","С фиксацией","Жёлтый","Пластик",null,null,null,null,null,"ПлоскаяС фиксациейЖёлтыйПластикДа","M22P-FLLYP"]
["M22P-FLLWP","Головка кнопки плоская прозрачная с  фиксацией, белая","Плоская","Да","С фиксацией","Белый","Пластик",null,null,null,null,null,"ПлоскаяС фиксациейБелыйПластикДа","M22P-FLLWP"]
["M22P-FMLRP","Головка кнопки плоская прозрачная без фиксации, красная","Плоская","Да","Без фиксации","Красный","Пластик",null,null,null,null,null,"ПлоскаяБез фиксацииКрасныйПластикДа","M22P-FMLRP"]
["M22P-FMLGP","Головка кнопки плоская  прозрачная без фиксации, зеленая","Плоская","Да","Без фиксации","Зелёный","Пластик",null,null,null,null,null,"ПлоскаяБез фиксацииЗелёныйПластикДа","M22P-FMLGP"]
["M22P-FMLYP","Головка кнопки плоская прозрачная без  фиксации, желтая","Плоская","Да","Без фиксации","Жёлтый","Пластик",null,null,null,null,null,"ПлоскаяБез фиксацииЖёлтыйПластикДа","M22P-FMLYP"]
["M22P-FMLBP","Головка кнопки плоская прозрачная без фиксации,  синяя","Плоская","Да","Без фиксации","Синий","Пластик",null,null,null,null,null,"ПлоскаяБез фиксацииСинийПластикДа","M22P-FMLBP"]
["M22P-FMLWP","Головка кнопки плоская прозрачная без фиксации,  белая","Плоская","Да","Без фиксации","Белый","Пластик",null,null,null,null,null,"ПлоскаяБез фиксацииБелыйПластикДа","M22P-FMLWP"]
["M22P-FMRP","Головка кнопки плоская без фиксации,  красная","Плоская","Нет","Без фиксации","Красный","Пластик",null,null,null,null,null,"ПлоскаяБез фиксацииКрасныйПластикНет","M22P-FMRP"]
["M22P-FMGP","Головка кнопки плоская без фиксации,  зеленая","Плоская","Нет","Без фиксации","Зелёный","Пластик",null,null,null,null,null,"ПлоскаяБез фиксацииЗелёныйПластикНет","M22P-FMGP"]
["M22P-FMBP","Головка кнопки плоская без фиксации, синяя","Плоская","Нет","Без фиксации","Синий","Пластик",null,null,null,null,null,"ПлоскаяБез фиксацииСинийПластикНет","M22P-FMBP"]
["M22P-FMWP","Головка кнопки плоская без фиксации, белая","Плоская","Нет","Без фиксации","Белый","Пластик",null,null,null,null,null,"ПлоскаяБез фиксацииБелыйПластикНет","M22P-FMWP"]
["M22P-FMYP","Головка кнопки плоская без фиксации, жёлтая","Плоская","Нет","Без фиксации","Жёлтый","Пластик",null,null,null,null,null,"ПлоскаяБез фиксацииЖёлтыйПластикНет","M22P-FMYP"]
["M22P-FMBLP","Головка кнопки плоская без фиксации, черная","Плоская","Нет","Без фиксации","Чёрный","Пластик",null,null,null,null,null,"ПлоскаяБез фиксацииЧёрныйПластикНет","M22P-FMBLP","ПлоскаяБез фиксацииЧёрныйПластикНет"]
["M22E-MLLRP","Головка кнопки аварийная грибовидная поворотная д.40","Грибовидная","Да","С фиксацией","Красный","Пластик",null,null,null,null,null,"ГрибовиднаяС фиксациейКрасныйПластикДа","M22E-MLLRP"]
["M22L-F220RPP","Сигнальный индикатор со встроенным  диодом 220В, красный",null,null,null,"Красный",null,"Безвинтовой Plug-In",null,null,"220 В",null,"КрасныйБезвинтовой Plug-In220 В","M22L-F220RPP"]
["M22L-F24RPP","Сигнальный индикатор со встроенным  диодом 9-24В, красный",null,null,null,"Красный",null,"Безвинтовой Plug-In",null,null,"9-24 В",null,"КрасныйБезвинтовой Plug-In9-24 В","M22L-F24RPP"]
["M22L-F220GPP","Сигнальный индикатор со  встроенным диодом 220В, зеленый",null,null,null,"Зелёный",null,"Безвинтовой Plug-In",null,null,"220 В",null,"ЗелёныйБезвинтовой Plug-In220 В","M22L-F220GPP"]
["M22L-F24GPP","Сигнальный индикатор со встроенным диодом 9-24В, зеленый",null,null,null,"Зелёный",null,"Безвинтовой Plug-In",null,null,"9-24 В",null,"ЗелёныйБезвинтовой Plug-In9-24 В","M22L-F24GPP"]
["M22L-F220YPP","Сигнальный индикатор  со встроенным диодом 220В, желтый",null,null,null,"Жёлтый",null,"Безвинтовой Plug-In",null,null,"220 В",null,"ЖёлтыйБезвинтовой Plug-In220 В","M22L-F220YPP"]
["M22L-F24YPP","Сигнальный индикатор со  встроенным диодом 9-24В, желтый",null,null,null,"Жёлтый",null,"Безвинтовой Plug-In",null,null,"9-24 В",null,"ЖёлтыйБезвинтовой Plug-In9-24 В","M22L-F24YPP"]
["M22L-F220WPP","Сигнальный индикатор со встроенным диодом 220В,  белый",null,null,null,"Белый",null,"Безвинтовой Plug-In",null,null,"220 В",null,"БелыйБезвинтовой Plug-In220 В","M22L-F220WPP"]
["M22L-F24WPP","Сигнальный индикатор со встроенным диодом 9-24В,  белый",null,null,null,"Белый",null,"Безвинтовой Plug-In",null,null,"9-24 В",null,"БелыйБезвинтовой Plug-In9-24 В","M22L-F24WPP"]
["M22L-F220BPP","Сигнальный индикатор со встроенным диодом 220В,  синий",null,null,null,"Синий",null,"Безвинтовой Plug-In",null,null,"220 В",null,"СинийБезвинтовой Plug-In220 В","M22L-F220BPP"]
["M22L-F24BPP","Сигнальный индикатор со встроенным диодом 9-24В, синий",null,null,null,"Синий",null,"Безвинтовой Plug-In",null,null,"9-24 В",null,"СинийБезвинтовой Plug-In9-24 В","M22L-F24BPP"]
["M22S-M2A","Головка переключатель на 2 положения с возвратом стандартная ручка, черный, алюминий","Без ключа",null,"Без фиксации",null,"Алюминий",null,null,null,null,2,"Без ключаБез фиксацииАлюминий2","M22S-M2A"]
["M22S-L2A","Головка переключатель на 2 положения с фиксацией стандартная ручка, черный, алюминий","Без ключа",null,"С фиксацией",null,"Алюминий",null,null,null,null,2,"Без ключаС фиксациейАлюминий2","M22S-L2A"]
["M22S-M3A","Головка переключатель на 3 положения с возвратом стандартная ручка, черный, алюминий","Без ключа",null,"Без фиксации",null,"Алюминий",null,null,null,null,3,"Без ключаБез фиксацииАлюминий3","M22S-M3A"]
["M22S-L3A","Головка переключатель на 3 положения с фиксацией стандартная ручка, черный, алюминий","Без ключа",null,"С фиксацией",null,"Алюминий",null,null,null,null,3,"Без ключаС фиксациейАлюминий3","M22S-L3A"]
["M22S-KM2A","Головка переключатель с ключом на 2 положения с возвратом стандартная ручка, черный, алюминий","С ключом",null,"Без фиксации",null,"Алюминий",null,null,null,null,2,"С ключомБез фиксацииАлюминий2","M22S-KM2A"]
["M22S-KL2A","Головка переключатель с ключом на 2 положения с фиксацией стандартная ручка, черный, алюминий","С ключом",null,"С фиксацией",null,"Алюминий",null,null,null,null,2,"С ключомС фиксациейАлюминий2","M22S-KL2A"]
["M22S-KM3A","Головка переключатель с ключом на 3 положения с возвратом стандартная ручка, черный, алюминий","С ключом",null,"Без фиксации",null,"Алюминий",null,null,null,null,3,"С ключомБез фиксацииАлюминий3","M22S-KM3A"]
["M22S-KL3A","Головка переключатель с ключом на 3 положения с фиксацией стандартная ручка, черный, алюминий","С ключом",null,"С фиксацией",null,"Алюминий",null,null,null,null,3,"С ключомС фиксациейАлюминий3","M22S-KL3A"]
["MC-NOPP","Контактный блок с клеммным безвинтовым  зажимом, нормально-открытый",null,null,null,null,null,"Безвинтовой Plug-In","Да","Нет",null,null,"Безвинтовой Plug-InДаНет","MC-NOPP"]
["MC-NCPP","Контактный блок  с клеммным безвинтовым зажимом, нормально-замкнутый",null,null,null,null,null,"Безвинтовой Plug-In","Нет","Да",null,null,"Безвинтовой Plug-InНетДа","MC-NCPP"]
["MC-L24RPP","Контактный  блок с клеммным безвинтовым зажимом со светодиодом на 9-24В, красный",null,"Да",null,"Красный",null,"Безвинтовой Plug-In",null,null,"9-24 В",null,"КрасныйБезвинтовой Plug-InДа9-24 В","MC-L24RPP"]
["MC-L24GPP","Контактный  блок с клеммным безвинтовым зажимом со светодиодом на 9-24В, зелёный",null,"Да",null,"Зелёный",null,"Безвинтовой Plug-In",null,null,"9-24 В",null,"ЗелёныйБезвинтовой Plug-InДа9-24 В","MC-L24GPP"]
["MC-L24BPP","Контактный  блок с клеммным безвинтовым зажимом со светодиодом на 9-24В, синий",null,"Да",null,"Синий",null,"Безвинтовой Plug-In",null,null,"9-24 В",null,"СинийБезвинтовой Plug-InДа9-24 В","MC-L24BPP"]
["MC-L24YPP","Контактный  блок с клеммным безвинтовым зажимом со светодиодом на 9-24В, жёлтый",null,"Да",null,"Жёлтый",null,"Безвинтовой Plug-In",null,null,"9-24 В",null,"ЖёлтыйБезвинтовой Plug-InДа9-24 В","MC-L24YPP"]
["MC-L24WPP","Контактный  блок с клеммным безвинтовым зажимом со светодиодом на 9-24В, белый",null,"Да",null,"Белый",null,"Безвинтовой Plug-In",null,null,"9-24 В",null,"БелыйБезвинтовой Plug-InДа9-24 В","MC-L24WPP"]
["MC-L220RPP","Контактный  блок с клеммным безвинтовым зажимом со светодиодом на 220В, красный",null,"Да",null,"Красный",null,"Безвинтовой Plug-In",null,null,"220 В",null,"КрасныйБезвинтовой Plug-InДа220 В","MC-L220RPP"]
["MC-L220GPP","Контактный  блок с клеммным безвинтовым зажимом со светодиодом на 220В, зелёный",null,"Да",null,"Зелёный",null,"Безвинтовой Plug-In",null,null,"220 В",null,"ЗелёныйБезвинтовой Plug-InДа220 В","MC-L220GPP"]
["MC-L220BPP","Контактный  блок с клеммным безвинтовым зажимом со светодиодом на 220В, синий",null,"Да",null,"Синий",null,"Безвинтовой Plug-In",null,null,"220 В",null,"СинийБезвинтовой Plug-InДа220 В","MC-L220BPP"]
["MC-L220YPP","Контактный  блок с клеммным безвинтовым зажимом со светодиодом на 220В, жёлтый",null,"Да",null,"Жёлтый",null,"Безвинтовой Plug-In",null,null,"220 В",null,"ЖёлтыйБезвинтовой Plug-InДа220 В","MC-L220YPP"]
["MC-L220WPP","Контактный  блок с клеммным безвинтовым зажимом со светодиодом на 220В, белый",null,"Да",null,"Белый",null,"Безвинтовой Plug-In",null,null,"220 В",null,"БелыйБезвинтовой Plug-InДа220 В","MC-L220WPP"]
["MC-NOPS","Контактный блок с клеммными  зажимами под винт, нормально-открытый",null,null,null,null,null,"Винтовой","Да","Нет",null,null,"ВинтовойДаНет","MC-NOPS"]
["MC-NCPS","Контактный блок с клеммными  зажимами под винт, нормально-замкнутый",null,null,null,null,null,"Винтовой","Нет","Да",null,null,"ВинтовойНетДа","MC-NCPS"]
["MC-L24RPS","Контактный блок с клеммными зажимами под винт со светодиодом на  9-24В, красный",null,"Да",null,"Красный",null,"Винтовой",null,null,"9-24 В",null,"КрасныйВинтовойДа9-24 В","MC-L24RPS"]
["MC-L24GPS","Контактный блок с клеммными зажимами под винт со светодиодом на  9-24В, зелёный",null,"Да",null,"Зелёный",null,"Винтовой",null,null,"9-24 В",null,"ЗелёныйВинтовойДа9-24 В","MC-L24GPS"]
["MC-L24BPS","Контактный блок с клеммными зажимами под винт со светодиодом на  9-24В, синий",null,"Да",null,"Синий",null,"Винтовой",null,null,"9-24 В",null,"СинийВинтовойДа9-24 В","MC-L24BPS"]
["MC-L24YPS","Контактный блок с клеммными зажимами под винт со светодиодом на  9-24В, жёлтый",null,"Да",null,"Жёлтый",null,"Винтовой",null,null,"9-24 В",null,"ЖёлтыйВинтовойДа9-24 В","MC-L24YPS"]
["MC-L24WPS","Контактный блок с клеммными зажимами под винт со светодиодом на  9-24В, белый",null,"Да",null,"Белый",null,"Винтовой",null,null,"9-24 В",null,"БелыйВинтовойДа9-24 В","MC-L24WPS"]
["MC-L220RPS","Контактный блок с клеммными зажимами под винт со светодиодом на  220В, красный",null,"Да",null,"Красный",null,"Винтовой",null,null,"220 В",null,"КрасныйВинтовойДа220 В","MC-L220RPS"]
["MC-L220GPS","Контактный блок с клеммными зажимами под винт со светодиодом на  220В, зелёный",null,"Да",null,"Зелёный",null,"Винтовой",null,null,"220 В",null,"ЗелёныйВинтовойДа220 В","MC-L220GPS"]
["MC-L220BPS","Контактный блок с клеммными зажимами под винт со светодиодом на  220В, синий",null,"Да",null,"Синий",null,"Винтовой",null,null,"220 В",null,"СинийВинтовойДа220 В","MC-L220BPS"]
["MC-L220YPS","Контактный блок с клеммными зажимами под винт со светодиодом на  220В, жёлтый",null,"Да",null,"Жёлтый",null,"Винтовой",null,null,"220 В",null,"ЖёлтыйВинтовойДа220 В","MC-L220YPS"]
["MC-L220WPS","Контактный блок с клеммными зажимами под винт со светодиодом на  220В, белый",null,"Да",null,"Белый",null,"Винтовой",null,null,"220 В",null,"БелыйВинтовойДа220 В","MC-L220WPS"]
["M22MF","Монтажное основание для крепления головок кнопок, переключателей и контактных блоков",1,null,null,null,null,null,null,null,null,null,"1","M22MF "]
["M22ML","Маркировочная табличка",1,null,null,null,null,null,null,null,null,null,"1","M22ML"]
["M22EP","Защита грибовидной кнопки",1,null,null,null,null,null,null,null,null,null,"1","M22EP"]
["M22EPC","Защита грибовидной кнопки с крышкой",1,null,null,null,null,null,null,null,null,null,"1","M22EPC"]
["MC01","Корпус под кнопочный пост, 1 место",1,null,null,null,null,null,null,null,null,null,"1","MC01"]
["MC02","Корпус под кнопочный пост, 2 места",1,null,null,null,null,null,null,null,null,null,"1","MC02"]
["MC03","Корпус под кнопочный пост, 3 места",1,null,null,null,null,null,null,null,null,null,{"$f":"C67&E67&F67&G67&H67&I67&J67&D67&K67&L67","v":"1"},"MC03"]
["MC04","Корпус под кнопочный пост, 4 места",1,null,null,null,null,null,null,null,null,null,"1","MC04"]
["MC06","Корпус под кнопочный пост, 6 мест",1,null,null,null,null,null,null,null,null,null,"1","MC06"]

{"sheet":"Списки","index":3,"n_rows":28,"n_cols":10,"rows_kept":28,"cut":false,"hidden":true,"merged":[]}
["Кнопка"]
["1.Вид кнопки","2.Механизм","3.Цвет","4.Материал кольца","5. Тип зажима контактного блока","6.Наличие NO контактов","7.Наличие NC контактов","8.С возможностью подсветки","9.Напряжение сети","8. Количество NO контактов"]
["Плоская","С фиксацией","Красный","Пластик","Винтовой","Да","Да","Да","9-24 В",0]
["Грибовидная","Без фиксации","Зелёный",null,"Безвинтовой Plug-In","Нет","Нет","Нет","220 В",1]
[null,null,"Синий",null,null,null,null,null,"Нет",2]
[null,null,"Белый",null,null,null,null,null,null,3]
[null,null,"Жёлтый",null,null,null,null,null,null,4]
[null,null,"Чёрный",null,null,null,null,null,null,5]
[null,null,null,null,null,null,null,null,null,6]
[]
[]
[]
["Переклчатель"]
["1. Тип переключателя","2. Количество положений","3. Механизм","4.Материал","5.С возможностью подсветки","6.Напряжение сети","7.Цвет подсветки","8.Наличие NO контактов","9.Наличие NC контактов","8. Количество NO контактов"]
["С ключом",2,"С фиксацией","Алюминий","Да","9-24 В","Красный","Да","Да",0]
["Без ключа",3,"Без фиксации",null,null,"220 В","Зелёный","Нет","Нет",1]
[null,null,null,null,null,null,"Синий",null,null,2]
[null,null,null,null,null,null,"Белый",null,null,3]
[null,null,null,null,null,null,"Жёлтый",null,null,4]
[null,null,null,null,null,null,null,null,null,5]
[null,null,null,null,null,null,null,null,null,6]
["Сигнальный инидкатор"]
["1.Цвет лампы","2.Напряжение сети","3.Тип зажима"]
["Красный","9-24 В","Безвинтовой Plug-In"]
["Зелёный","220 В"]
["Синий"]
["Белый"]
["Жёлтый"]